fUSD/lending_fUSD_20260523
["ID","MTS","AMOUNT","RATE_DAILY","PERIOD"]
[422831612,1779489715000,155.07,4.98e-05,2]
[422831617,1779489716000,155.07,6.536e-05,2]
[422831616,1779489716000,155.07,6.225e-05,2]
[422831615,1779489716000,155.07,5.913e-05,2]
[422831614,1779489716000,155.07,5.602e-05,2]
[422831622,1779489717000,155.07,8.092e-05,2]
[422831621,1779489717000,155.07,7.781e-05,2]
[422831620,1779489717000,155.07,7.47e-05,2]
[422831619,1779489717000,155.07,7.158e-05,2]
[422831618,1779489717000,155.07,6.847e-05,2]
[422831623,1779489718000,155.07,8.403e-05,2]
[422831624,1779489736000,330.0,9.945e-05,3]
[422831625,1779489775000,250.3,8.575e-05,2]
[422831626,1779489805000,6916.17,8.505e-05,2]
[422831627,1779489828000,200.0,8.513e-05,2]
[422831814,1779489958000,-251.7,8.84e-05,2]
[422831809,1779489958000,-407.99,8.669e-05,2]
[422831810,1779489958000,-165.05,8.671e-05,2]
[422831813,1779489958000,-170.5767,8.799e-05,2]
[422831812,1779489958000,-237.0,8.756e-05,2]
[422831815,1779489958000,-166.67,8.877e-05,2]
[422831817,1779489958000,-181.40591719,8.919e-05,2]
[422831811,1779489958000,-155.07,8.715e-05,2]
[422831818,1779489958000,-1200.0,8.919e-05,2]
[422831823,1779489958000,-150.0,8.92e-05,2]
[422831819,1779489958000,-300.0,8.919e-05,2]
[422831820,1779489958000,-500.39999897,8.919e-05,2]
[422831824,1779489958000,-100252.86,8.921e-05,2]
[422831821,1779489958000,-2016.112,8.92e-05,2]
[422831822,1779489958000,-176.342,8.92e-05,2]
[422831816,1779489958000,-2000.0,8.879e-05,2]
[422831840,1779489959000,-158.531705,9.242e-05,2]
[422831838,1779489959000,-151.0,9.242e-05,2]
[422831839,1779489959000,-151.0,9.242e-05,2]
[422831837,1779489959000,-151.0,9.242e-05,2]
[422831836,1779489959000,-9999.99,9.242e-05,2]
[422831834,1779489959000,-173.17,9.242e-05,2]
[422831835,1779489959000,-22631.14,9.242e-05,2]
[422831832,1779489959000,-1216.34,9.242e-05,2]
[422831831,1779489959000,-299.99,9.242e-05,2]
[422831830,1779489959000,-9999.99,9.242e-05,2]
[422831841,1779489959000,-3688.69151243,9.264e-05,2]
[422831827,1779489959000,-5600.98,9.11e-05,2]
[422831828,1779489959000,-354.68854093,9.186e-05,2]
[422831825,1779489959000,-1312.12,9.02e-05,2]
[422831826,1779489959000,-14741.6,9.03e-05,2]
[422831833,1779489959000,-1750.08,9.242e-05,2]
[422831842,1779489959000,-150.99,9.641e-05,2]
[422831829,1779489959000,-14125.0,9.208e-05,2]
[422831844,1779489959000,-2500.0,9.642e-05,2]
[422831859,1779489959000,-313.04662748,9.741e-05,2]
[422831857,1779489959000,-264.99449319,9.741e-05,2]
[422831856,1779489959000,-558.42641168,9.741e-05,2]
[422831860,1779489959000,-57986.7428,9.742e-05,2]
[422831855,1779489959000,-340.11225954,9.741e-05,2]
[422831858,1779489959000,-378.7747208,9.741e-05,2]
[422831853,1779489959000,-500.0,9.741e-05,2]
[422831861,1779489959000,-468416.15975679,9.742e-05,2]
[422831854,1779489959000,-500.0,9.741e-05,2]
[422831850,1779489959000,-151.0,9.643e-05,2]
[422831849,1779489959000,-151.0,9.643e-05,2]
[422831851,1779489959000,-29229.1176,9.643e-05,2]
[422831848,1779489959000,-151.0,9.643e-05,2]
[422831847,1779489959000,-270.156956,9.643e-05,2]
[422831846,1779489959000,-151.0,9.643e-05,2]
[422831845,1779489959000,-151.0,9.643e-05,2]
[422831852,1779489959000,-2000.0,9.643e-05,2]
[422831843,1779489959000,-999.99,9.641e-05,2]
[422831865,1779490036000,1300.0,0.0001,3]
[422831869,1779490100000,500.0,8.569e-05,2]
[422831870,1779490109000,330.0,9.836e-05,3]
[422831871,1779490140000,1000.0,0.00027626,120]
[422831892,1779490231000,-500.0,9.655e-05,2]
[422831904,1779490231000,-500.0,9.655e-05,2]
[422831889,1779490231000,-500.0,9.604e-05,2]
[422831890,1779490231000,-150.0,9.655e-05,2]
[422831898,1779490231000,-500.0,9.655e-05,2]
[422831900,1779490231000,-500.0,9.655e-05,2]
[422831896,1779490231000,-480.09066192,9.655e-05,2]
[422831891,1779490231000,-500.0,9.655e-05,2]
[422831915,1779490231000,-500.0,9.655e-05,2]
[422831920,1779490231000,-500.0,9.655e-05,2]
[422831918,1779490231000,-500.0,9.655e-05,2]
[422831922,1779490231000,-500.0,9.655e-05,2]
[422831902,1779490231000,-500.0,9.655e-05,2]
[422831894,1779490231000,-500.0,9.655e-05,2]
[422831878,1779490231000,-300.0,9.24e-05,2]
[422831887,1779490231000,-500.0,9.604e-05,2]
[422831886,1779490231000,-2500.0,9.543e-05,2]
[422831883,1779490231000,-1872.07836152,9.242e-05,2]
[422831880,1779490231000,-356.04240201,9.241e-05,2]
[422831885,1779490231000,-356.04240199,9.492e-05,2]
[422831882,1779490231000,-485.47662152,9.242e-05,2]
[422831881,1779490231000,-1200.0,9.241e-05,2]
[422831879,1779490231000,-1200.0,9.24e-05,2]
[422831877,1779490231000,-2005.54447531,9.171e-05,2]
[422831874,1779490231000,-65.54447531,8.928e-05,2]
[422831875,1779490231000,-237.0,9.017e-05,2]
[422831876,1779490231000,-197.45552469,9.171e-05,2]
[422831873,1779490231000,-2180.49552469,8.928e-05,2]
[422831911,1779490231000,-500.0,9.655e-05,2]
[422831888,1779490231000,-500.0,9.604e-05,2]
[422831907,1779490231000,-500.0,9.655e-05,2]
[422831884,1779490231000,-910.78222874,9.242e-05,2]
[422831913,1779490231000,-500.0,9.655e-05,2]
[422831909,1779490231000,-510.4844534,9.655e-05,2]
[422831965,1779490231000,-500.0,9.655e-05,2]
[422831963,1779490231000,-269.05175894,9.655e-05,2]
[422831964,1779490231000,-500.0,9.655e-05,2]
[422831959,1779490231000,-500.0,9.655e-05,2]
[422831955,1779490231000,-500.0,9.655e-05,2]
[422831956,1779490231000,-500.0,9.655e-05,2]
[422831957,1779490231000,-500.0,9.655e-05,2]
[422831958,1779490231000,-500.0,9.655e-05,2]
[422831961,1779490231000,-500.0,9.655e-05,2]
[422831952,1779490231000,-500.0,9.655e-05,2]
[422831951,1779490231000,-553.20419446,9.655e-05,2]
[422831953,1779490231000,-500.0,9.655e-05,2]
[422831962,1779490231000,-500.0,9.655e-05,2]
[422831954,1779490231000,-500.0,9.655e-05,2]
[422831960,1779490231000,-500.0,9.655e-05,2]
[422831949,1779490231000,-500.0,9.655e-05,2]
[422831950,1779490231000,-500.0,9.655e-05,2]
[422831927,1779490231000,-500.0,9.655e-05,2]
[422831930,1779490231000,-500.0,9.655e-05,2]
[422831932,1779490231000,-500.0,9.655e-05,2]
[422831942,1779490231000,-500.0,9.655e-05,2]
[422831943,1779490231000,-500.0,9.655e-05,2]
[422831947,1779490231000,-500.0,9.655e-05,2]
[422831925,1779490231000,-500.0,9.655e-05,2]
[422831945,1779490231000,-500.0,9.655e-05,2]
[422831934,1779490231000,-263.09362555,9.655e-05,2]
[422831948,1779490231000,-500.0,9.655e-05,2]
[422831938,1779490231000,-500.0,9.655e-05,2]
[422831940,1779490231000,-500.0,9.655e-05,2]
[422831936,1779490231000,-500.0,9.655e-05,2]
[422831944,1779490231000,-500.0,9.655e-05,2]
[422831973,1779490232000,-500.0,9.655e-05,2]
[422831974,1779490232000,-500.0,9.655e-05,2]
[422831966,1779490232000,-500.0,9.655e-05,2]
[422831967,1779490232000,-500.0,9.655e-05,2]
[422831969,1779490232000,-478.8377501,9.655e-05,2]
[422831968,1779490232000,-500.0,9.655e-05,2]
[422831975,1779490232000,-499.99999999,9.655e-05,2]
[422831972,1779490232000,-500.0,9.655e-05,2]
[422831971,1779490232000,-500.0,9.655e-05,2]
[422831977,1779490232000,-278881.64684241,9.656e-05,2]
[422831976,1779490232000,-500.0,9.655e-05,2]
[422831979,1779490232000,-2019.00692458,9.656e-05,2]
[422831978,1779490232000,-10238.81295292,9.656e-05,2]
[422831970,1779490232000,-500.0,9.655e-05,2]
[422831980,1779490234000,200.0,0.0001,3]
[422832000,1779490237000,-503.0,9.656e-05,2]
[422832001,1779490237000,-1128.37587025,9.656e-05,2]
[422832002,1779490237000,-1373.25000103,9.656e-05,2]
[422832003,1779490237000,-1222.69478,9.656e-05,2]
[422832007,1779490237000,-756.89623685,9.656e-05,2]
[422832005,1779490237000,-904.1372,9.656e-05,2]
[422832006,1779490237000,-393.34307301,9.656e-05,2]
[422832008,1779490237000,-202781.78607554,9.656e-05,2]
[422832004,1779490237000,-3431.39827791,9.656e-05,2]
[422832020,1779490237000,-178.40830891,9.745e-05,2]
[422832012,1779490237000,-151.0,9.742e-05,2]
[422832011,1779490237000,-151.0,9.742e-05,2]
[422832014,1779490237000,-151.0,9.742e-05,2]
[422832018,1779490237000,-500.0,9.745e-05,2]
[422832013,1779490237000,-151.0,9.742e-05,2]
[422832009,1779490237000,-999.99,9.656e-05,2]
[422832016,1779490237000,-356.04240199,9.742e-05,2]
[422832019,1779490237000,-297.43754297,9.745e-05,2]
[422832010,1779490237000,-250148.12284321,9.742e-05,2]
[422832063,1779490238000,-151.0,0.00010188,2]
[422832062,1779490238000,-153.339106,0.00010182,2]
[422832060,1779490238000,-1680.0,0.00010164,2]
[422832061,1779490238000,-151.0,0.00010179,2]
[422832058,1779490238000,-250.0,0.00010088,2]
[422832057,1779490238000,-1427.25,0.00010027,2]
[422832059,1779490238000,-5000.0,0.00010091,2]
[422832053,1779490238000,-151.0,9.942e-05,2]
[422832064,1779490238000,-500.0,0.00010203,2]
[422832055,1779490238000,-2000.0,9.989e-05,2]
[422832056,1779490238000,-163.46,0.0001,2]
[422832073,1779490238000,-500.0,0.00010311,2]
[422832069,1779490238000,-855.58721,0.0001027,2]
[422832066,1779490238000,-855.5872,0.0001027,2]
[422832070,1779490238000,-855.5872,0.0001027,2]
[422832054,1779490238000,-166.67,9.98e-05,2]
[422832068,1779490238000,-855.58721,0.0001027,2]
[422832067,1779490238000,-855.5872,0.0001027,2]
[422832071,1779490238000,-855.58721,0.0001027,2]
[422832072,1779490238000,-1427.25,0.00010278,2]
[422832074,1779490238000,-500.0,0.00010311,2]
[422832076,1779490238000,-500.0,0.00010311,2]
[422832086,1779490238000,-500.0,0.00010311,2]
[422832075,1779490238000,-500.0,0.00010311,2]
[422832080,1779490238000,-500.0,0.00010311,2]
[422832065,1779490238000,-166.66,0.00010214,2]
[422832051,1779490238000,-3875.0924898,9.934e-05,2]
[422832047,1779490238000,-348.26918595,9.86e-05,2]
[422832050,1779490238000,-250.0,9.932e-05,2]
[422832021,1779490238000,-212.01216477,9.745e-05,2]
[422832022,1779490238000,-569.27389648,9.745e-05,2]
[422832024,1779490238000,-17458.153148,9.746e-05,2]
[422832023,1779490238000,-1232.0172127,9.746e-05,2]
[422832026,1779490238000,-32838.7535611,9.746e-05,2]
[422832025,1779490238000,-14969.0877655,9.746e-05,2]
[422832032,1779490238000,-151.0,9.746e-05,2]
[422832029,1779490238000,-151.0,9.746e-05,2]
[422832027,1779490238000,-3886.2551824,9.746e-05,2]
[422832079,1779490238000,-500.0,0.00010311,2]
[422832031,1779490238000,-152.529896,9.746e-05,2]
[422832028,1779490238000,-1962.0641717,9.746e-05,2]
[422832030,1779490238000,-151.0,9.746e-05,2]
[422832036,1779490238000,-151.0,9.746e-05,2]
[422832034,1779490238000,-151.0,9.746e-05,2]
[422832038,1779490238000,-407.99,9.753e-05,2]
[422832048,1779490238000,-1619.33,9.879e-05,2]
[422832039,1779490238000,-250.0,9.804e-05,2]
[422832041,1779490238000,-193.0,9.821e-05,2]
[422832049,1779490238000,-500.0,9.929e-05,2]
[422832043,1779490238000,-250.0,9.821e-05,2]
[422832044,1779490238000,-300.0,9.821e-05,2]
[422832046,1779490238000,-200.0,9.86e-05,2]
[422832042,1779490238000,-500.0,9.821e-05,2]
[422832045,1779490238000,-151.0,9.839e-05,2]
[422832052,1779490238000,-151.0,9.939e-05,2]
[422832077,1779490238000,-500.0,0.00010311,2]
[422832125,1779490238000,-500.0,0.00010311,2]
[422832081,1779490238000,-500.0,0.00010311,2]
[422832123,1779490238000,-500.0,0.00010311,2]
[422832112,1779490238000,-500.0,0.00010311,2]
[422832114,1779490238000,-500.0,0.00010311,2]
[422832121,1779490238000,-500.0,0.00010311,2]
[422832118,1779490238000,-500.0,0.00010311,2]
[422832119,1779490238000,-500.0,0.00010311,2]
[422832122,1779490238000,-500.0,0.00010311,2]
[422832116,1779490238000,-500.0,0.00010311,2]
[422832115,1779490238000,-500.0,0.00010311,2]
[422832120,1779490238000,-500.0,0.00010311,2]
[422832117,1779490238000,-500.0,0.00010311,2]
[422832124,1779490238000,-500.0,0.00010311,2]
[422832127,1779490238000,-151.0,0.00010375,2]
[422832133,1779490238000,-151.0,0.00010378,2]
[422832130,1779490238000,-1000.0,0.00010378,2]
[422832134,1779490238000,-151.0,0.00010378,2]
[422832129,1779490238000,-151.0,0.00010378,2]
[422832132,1779490238000,-839.88784854,0.00010378,2]
[422832126,1779490238000,-628.1,0.00010311,2]
[422832131,1779490238000,-758.48683559,0.00010378,2]
[422832137,1779490238000,-151.0,0.00010378,2]
[422832136,1779490238000,-151.0,0.00010378,2]
[422832135,1779490238000,-151.0,0.00010378,2]
[422832138,1779490238000,-200.0,0.00010384,2]
[422832078,1779490238000,-500.0,0.00010311,2]
[422832113,1779490238000,-500.0,0.00010311,2]
[422832111,1779490238000,-500.0,0.00010311,2]
[422832128,1779490238000,-21973.31888181,0.00010378,2]
[422832110,1779490238000,-500.0,0.00010311,2]
[422832082,1779490238000,-500.0,0.00010311,2]
[422832084,1779490238000,-500.0,0.00010311,2]
[422832102,1779490238000,-500.0,0.00010311,2]
[422832083,1779490238000,-500.0,0.00010311,2]
[422832087,1779490238000,-500.0,0.00010311,2]
[422832088,1779490238000,-500.0,0.00010311,2]
[422832089,1779490238000,-500.0,0.00010311,2]
[422832090,1779490238000,-507.72,0.00010311,2]
[422832092,1779490238000,-500.0,0.00010311,2]
[422832091,1779490238000,-500.0,0.00010311,2]
[422832093,1779490238000,-500.0,0.00010311,2]
[422832099,1779490238000,-500.0,0.00010311,2]
[422832095,1779490238000,-500.0,0.00010311,2]
[422832085,1779490238000,-564.29,0.00010311,2]
[422832097,1779490238000,-500.0,0.00010311,2]
[422832098,1779490238000,-500.0,0.00010311,2]
[422832106,1779490238000,-500.0,0.00010311,2]
[422832104,1779490238000,-500.0,0.00010311,2]
[422832108,1779490238000,-500.0,0.00010311,2]
[422832105,1779490238000,-500.0,0.00010311,2]
[422832109,1779490238000,-500.0,0.00010311,2]
[422832103,1779490238000,-500.0,0.00010311,2]
[422832101,1779490238000,-500.0,0.00010311,2]
[422832100,1779490238000,-500.0,0.00010311,2]
[422832094,1779490238000,-500.0,0.00010311,2]
[422832096,1779490238000,-500.0,0.00010311,2]
[422832107,1779490238000,-500.0,0.00010311,2]
[422832144,1779490239000,-1427.25,0.00010529,2]
[422832139,1779490239000,-168.98,0.00010465,2]
[422832140,1779490239000,-500.0,0.00010477,2]
[422832142,1779490239000,-151.0,0.00010517,2]
[422832152,1779490239000,-69822.02893549,0.00010565,2]
[422832145,1779490239000,-2854.95,0.00010538,2]
[422832146,1779490239000,-573.93742471,0.00010555,2]
[422832141,1779490239000,-2362.75472808,0.00010486,2]
[422832148,1779490239000,-151.0,0.00010565,2]
[422832147,1779490239000,-151.0,0.00010562,2]
[422832155,1779490239000,-7189.05607574,0.00010565,2]
[422832153,1779490239000,-151.0,0.00010565,2]
[422832154,1779490239000,-419.94392427,0.00010565,2]
[422832143,1779490239000,-20111.0,0.0001052,2]
[422832151,1779490239000,-151.0,0.00010565,2]
[422832150,1779490239000,-151.0,0.00010565,2]
[422832149,1779490239000,-151.0,0.00010565,2]
[422832158,1779490240000,-500.0,0.00010565,2]
[422832156,1779490240000,-3780.55,0.00010565,2]
[422832165,1779490242000,-1218.58429038,0.00010565,2]
[422832164,1779490242000,-288.1297555,0.00010565,2]
[422832166,1779490242000,-3003.91357152,0.00010565,2]
[422832163,1779490242000,-209.97196214,0.00010565,2]
[422832177,1779490362000,159.0,7.17e-05,2]
[422832178,1779490363000,173.8460047,8.17e-05,2]
[422832185,1779490741000,150.76,4.611e-05,2]
[422832190,1779490742000,150.76,6.917e-05,2]
[422832188,1779490742000,150.76,5.995e-05,2]
[422832187,1779490742000,150.76,5.533e-05,2]
[422832186,1779490742000,150.76,5.072e-05,2]
[422832189,1779490742000,150.76,6.456e-05,2]
[422832193,1779490743000,150.76,8.3e-05,2]
[422832192,1779490743000,150.76,7.839e-05,2]
[422832191,1779490743000,150.76,7.378e-05,2]
[422832194,1779490869000,808.0,0.00010302,5]
[422832195,1779490958000,303.98,8.614e-05,2]
[422832196,1779490961000,44107.32,8.614e-05,2]
[422832197,1779490999000,500.0,8.486e-05,2]
[422832198,1779491126000,1667.5,8.453e-05,2]
[422832199,1779491225000,1700.0,9.8e-05,3]
[422832200,1779491227000,3400.0,9.9e-05,3]
[422832201,1779491227000,1472.66,8.398e-05,2]
[422832202,1779491229000,5100.0,0.0001,3]
[422832269,1779491335000,500.0,8.396e-05,3]
[422832270,1779491340000,1000.0,0.00027625,120]
[422832271,1779491347000,500.0,8.406e-05,2]
[422832272,1779491409000,703.05,8.351e-05,2]
[422832273,1779491425000,15695.03,8.361e-05,2]
[422832274,1779491427000,725.600649,8.627e-05,2]
[422832285,1779491431000,-194.0,8.76e-05,2]
[422832282,1779491431000,-725.89271959,8.76e-05,2]
[422832286,1779491431000,-150.76,8.761e-05,2]
[422832284,1779491431000,-300.0,8.76e-05,2]
[422832283,1779491431000,-474.10728041,8.76e-05,2]
[422832278,1779491431000,-165.69417507,8.752e-05,2]
[422832287,1779491431000,-500.0,8.761e-05,2]
[422832288,1779491431000,-453.80965763,8.761e-05,2]
[422832279,1779491431000,-161.55902973,8.757e-05,2]
[422832289,1779491431000,-46.19034237,8.761e-05,2]
[422832277,1779491431000,-371.24548325,8.752e-05,2]
[422832275,1779491431000,-1013.18,8.671e-05,2]
[422832276,1779491431000,-242.21034168,8.752e-05,2]
[422832281,1779491431000,-300.0,8.76e-05,2]
[422832291,1779491431000,-500.0,8.761e-05,2]
[422832280,1779491431000,-150.0,8.757e-05,2]
[422832296,1779491431000,-263.31,8.877e-05,2]
[422832294,1779491431000,-500.0,8.761e-05,2]
[422832304,1779491431000,-424.78901601,8.93e-05,2]
[422832305,1779491431000,-178.95200143,9.101e-05,2]
[422832303,1779491431000,-4726.3500637,8.93e-05,2]
[422832302,1779491431000,-398.23314633,8.93e-05,2]
[422832300,1779491431000,-150.99,8.93e-05,2]
[422832298,1779491431000,-500.0,8.919e-05,2]
[422832306,1779491431000,-2871.34328848,9.101e-05,2]
[422832297,1779491431000,-559.2,8.902e-05,2]
[422832295,1779491431000,-150.0,8.843e-05,2]
[422832293,1779491431000,-500.0,8.761e-05,2]
[422832290,1779491431000,-500.0,8.761e-05,2]
[422832292,1779491431000,-500.0,8.761e-05,2]
[422832299,1779491431000,-158.0,8.93e-05,2]
[422832301,1779491431000,-4450.61777396,8.93e-05,2]
[422832322,1779491432000,-1383.07,9.408e-05,2]
[422832318,1779491432000,-2206.13,9.271e-05,2]
[422832323,1779491432000,-161.55902972,9.538e-05,2]
[422832324,1779491432000,-195.7224227,9.538e-05,2]
[422832326,1779491432000,-193.0,9.538e-05,2]
[422832325,1779491432000,-250.0,9.538e-05,2]
[422832307,1779491432000,-415.16,9.101e-05,2]
[422832335,1779491432000,-500.0,9.555e-05,2]
[422832331,1779491432000,-1340.07,9.54e-05,2]
[422832334,1779491432000,-500.0,9.555e-05,2]
[422832319,1779491432000,-200.0,9.32e-05,2]
[422832321,1779491432000,-703.05,9.395e-05,2]
[422832313,1779491432000,-1000.0,9.198e-05,2]
[422832314,1779491432000,-24106.0,9.199e-05,2]
[422832315,1779491432000,-150.0,9.219e-05,2]
[422832316,1779491432000,-6525.0,9.22e-05,2]
[422832312,1779491432000,-1723.0,9.176e-05,2]
[422832311,1779491432000,-1028.0,9.161e-05,2]
[422832310,1779491432000,-4916.0,9.16e-05,2]
[422832320,1779491432000,-2000.0,9.358e-05,2]
[422832309,1779491432000,-157.99,9.151e-05,2]
[422832308,1779491432000,-1881.49671152,9.101e-05,2]
[422832317,1779491432000,-150.76,9.222e-05,2]
[422832328,1779491432000,-250.0,9.538e-05,2]
[422832327,1779491432000,-250.0,9.538e-05,2]
[422832332,1779491432000,-430.04872724,9.546e-05,2]
[422832333,1779491432000,-166.67,9.551e-05,2]
[422832356,1779491432000,-5594.4428363,9.556e-05,2]
[422832357,1779491432000,-939.169211,9.556e-05,2]
[422832355,1779491432000,-1557.27262659,9.556e-05,2]
[422832354,1779491432000,-625.05307491,9.556e-05,2]
[422832351,1779491432000,-33202.0309,9.556e-05,2]
[422832349,1779491432000,-150.0,9.555e-05,2]
[422832350,1779491432000,-3303.22775504,9.555e-05,2]
[422832345,1779491432000,-252.1168621,9.555e-05,2]
[422832353,1779491432000,-112287.18319032,9.556e-05,2]
[422832352,1779491432000,-2000.0,9.556e-05,2]
[422832344,1779491432000,-500.0,9.555e-05,2]
[422832347,1779491432000,-285.62273327,9.555e-05,2]
[422832348,1779491432000,-150.0,9.555e-05,2]
[422832330,1779491432000,-176.342,9.539e-05,2]
[422832337,1779491432000,-500.0,9.555e-05,2]
[422832339,1779491432000,-500.0,9.555e-05,2]
[422832338,1779491432000,-500.0,9.555e-05,2]
[422832329,1779491432000,-1612.889,9.539e-05,2]
[422832342,1779491432000,-500.0,9.555e-05,2]
[422832341,1779491432000,-503.20419446,9.555e-05,2]
[422832343,1779491432000,-248.49172754,9.555e-05,2]
[422832346,1779491432000,-362.56595839,9.555e-05,2]
[422832336,1779491432000,-456.59936904,9.555e-05,2]
[422832370,1779491437000,-150.0,9.616e-05,2]
[422832364,1779491437000,-61739.75462791,9.556e-05,2]
[422832366,1779491437000,-667.96197469,9.556e-05,2]
[422832365,1779491437000,-378.57708216,9.556e-05,2]
[422832367,1779491437000,-1316210.58537612,9.556e-05,2]
[422832368,1779491437000,-162.71,9.582e-05,2]
[422832371,1779491437000,-150.0,9.616e-05,2]
[422832369,1779491437000,-150.0,9.616e-05,2]
[422832373,1779491437000,-150.0,9.616e-05,2]
[422832372,1779491437000,-150.0,9.616e-05,2]
[422832377,1779491437000,-150.0,9.616e-05,2]
[422832379,1779491437000,-420.0,9.636e-05,2]
[422832374,1779491437000,-151.31876581,9.616e-05,2]
[422832380,1779491437000,-1680.0,9.636e-05,2]
[422832376,1779491437000,-150.0,9.616e-05,2]
[422832378,1779491437000,-150.0,9.616e-05,2]
[422832375,1779491437000,-150.0,9.616e-05,2]
[422832426,1779491438000,-696.32543239,0.0001006,2]
[422832412,1779491438000,-504.36737904,0.0001,2]
[422832422,1779491438000,-150.0,0.00010044,2]
[422832449,1779491438000,-174.142519,0.00010228,2]
[422832421,1779491438000,-150.0,0.00010044,2]
[422832413,1779491438000,-382.6249498,0.0001,2]
[422832427,1779491438000,-150.0,0.00010095,2]
[422832410,1779491438000,-150.0,9.985e-05,2]
[422832424,1779491438000,-150.0,0.00010059,2]
[422832433,1779491438000,-255.0,0.00010141,2]
[422832439,1779491438000,-150.0,0.00010169,2]
[422832443,1779491438000,-368.33397,0.00010228,2]
[422832432,1779491438000,-150.0,0.00010132,2]
[422832441,1779491438000,-150.0,0.00010206,2]
[422832435,1779491438000,-150.0,0.00010151,2]
[422832445,1779491438000,-2655.1885771,0.00010228,2]
[422832437,1779491438000,-150.0,0.00010151,2]
[422832447,1779491438000,-815.5999889,0.00010228,2]
[422832418,1779491438000,-1587.49,0.00010027,2]
[422832429,1779491438000,-500.0,0.00010103,2]
[422832419,1779491438000,-150.0,0.00010044,2]
[422832392,1779491438000,-500.0,9.829e-05,2]
[422832416,1779491438000,-150.0,0.00010022,2]
[422832381,1779491438000,-282.71,9.647e-05,2]
[422832382,1779491438000,-150.0,9.653e-05,2]
[422832384,1779491438000,-29999.99,9.67e-05,2]
[422832385,1779491438000,-29999.99,9.67e-05,2]
[422832383,1779491438000,-9999.99,9.67e-05,2]
[422832386,1779491438000,-150.0,9.69e-05,2]
[422832389,1779491438000,-150.0,9.795e-05,2]
[422832387,1779491438000,-150.0,9.727e-05,2]
[422832388,1779491438000,-150.0,9.764e-05,2]
[422832391,1779491438000,-150.0,9.801e-05,2]
[422832453,1779491438000,-150.0,0.00010243,2]
[422832402,1779491438000,-170.51484484,9.936e-05,2]
[422832400,1779491438000,-150.0,9.911e-05,2]
[422832398,1779491438000,-150.0,9.874e-05,2]
[422832390,1779491438000,-150.0,9.795e-05,2]
[422832395,1779491438000,-150.0,9.83e-05,2]
[422832396,1779491438000,-150.0,9.838e-05,2]
[422832393,1779491438000,-150.0,9.83e-05,2]
[422832394,1779491438000,-150.0,9.83e-05,2]
[422832404,1779491438000,-150.0,9.948e-05,2]
[422832406,1779491438000,-150.0,9.973e-05,2]
[422832408,1779491438000,-150.0,9.973e-05,2]
[422832451,1779491438000,-7783.3279328,0.00010228,2]
[422832479,1779491438000,-500.0,0.00010377,2]
[422832457,1779491438000,-150.0,0.00010258,2]
[422832511,1779491438000,-150.0,0.00010507,2]
[422832513,1779491438000,-392.03089,0.0001051,2]
[422832515,1779491438000,-2000.0,0.00010528,2]
[422832517,1779491438000,-1587.49,0.00010529,2]
[422832529,1779491438000,-209.97196213,0.00010565,2]
[422832531,1779491438000,-200.0,0.00010565,2]
[422832525,1779491438000,-150.0,0.00010538,2]
[422832527,1779491438000,-479.89,0.00010548,2]
[422832534,1779491438000,-200.0,0.00010565,2]
[422832538,1779491438000,-392.03089,0.00010565,2]
[422832540,1779491438000,-392.03089,0.00010565,2]
[422832542,1779491438000,-300.0,0.00010565,2]
[422832552,1779491438000,-14420.32839644,0.00010565,2]
[422832544,1779491438000,-151.0,0.00010565,2]
[422832549,1779491438000,-1224.25539314,0.00010565,2]
[422832546,1779491438000,-143011.41930858,0.00010565,2]
[422832536,1779491438000,-200.0,0.00010565,2]
[422832554,1779491438000,-3105.82464839,0.00010565,2]
[422832556,1779491438000,-1603.0,0.00010565,2]